Cogmind - Beta 16.1 @@@ ROGUE MODE // 2026.04.15 @ 15:54:17 Player: Dosh Result: Destroyed by S-27 Virus with Autogun Performance ------------- Evolutions (6) 3000 Regions Visited (16) 3200 Robots Destroyed (382) 1910 Value Destroyed (17805) 17805 Prototype IDs (34) 680 Alien Tech Used (0) 0 Bonus (-4899) -4899 TOTAL SCORE: 21696 Bonus ------- High Alert Combat Kills 3960 Follower Combat Kills 2117 Network Hubs Disabled 200 Registered with UFD 300 Met Optimus in HQ 500 Built Enhanced Grunts 300 Met R17 at Cetus 500 Friendly Fire -12776 Cogmind --------- Core Integrity 0/1150 Matter 152/300 Energy 99/100 System Corruption 31% Temperature Cool (0) Movement Core (50) Location -4/Armory Parts ------- > --- POWER (3) -------- (None) > --- PROPULSION (4) --- (None) > --- UTILITY (9) ------ (None) > --- WEAPON (3) ------- (None) > --- INVENTORY (5) ---- Advanced Matter Compressor (400) Improved Sensor Array Advanced Plasma Cannon High-powered Shotgun Improved Remote Datajack Peak State ------------ > --- POWER ------------ Quantum Reactor Quantum Reactor Quantum Reactor > --- PROPULSION ------- Centrium Heavy Treads Centrium Heavy Treads > --- UTILITY ---------- Experimental Heat Sink High-capacity Storage Unit Experimental Targeting Computer Advanced Weapon Cycler Centrium Medium Armor Plating Medium Regenerative Plating Experimental EM Shield Improved Remote Force Field Advanced Hacking Suite > --- WEAPON ----------- EMDS Railgun > --- INVENTORY -------- Quantum Reactor Centrium Heavy Treads Experimental Heat Sink Experimental Heat Sink Advanced Matter Compressor Advanced Hacking Suite Advanced System Shield Drone Bay HERF Cannon Advanced Plasma Cannon Advanced KE Penetrator Advanced KE Penetrator Advanced KE Penetrator Advanced KE Penetrator Advanced KE Penetrator Long-range Missile Launcher CPS Tube DRS Beacon [Rating: 164] Favorites ----------- Power Quantum Reactor Engine Ion Engine Power Core Neutrino Core Reactor Quantum Reactor Propulsion Light Treads Treads Light Treads Leg Enhanced Armored Leg Wheel Overtuned Scrapsphere Utility High-capacity Storage Unit Device Experimental Heat Sink Storage High-capacity Storage Unit Processor Core Analyzer Hackware Advanced Hacking Suite Protection Medium Regenerative Plating Weapon Advanced KE Penetrator Energy Gun Riot Gun Energy Cannon Advanced Plasma Cannon Ballistic Gun Advanced KE Penetrator Ballistic Cannon Advanced Assault Cannon Launcher Grenade Launcher Special Weapon Improved Remote Datajack Impact Weapon Maul Slashing Weapon Phasing Sabre Build | -11 -10 -10 -9 -9 -6 -5 -5 -5 -5 -5 -5 -5 -4 -4 -4 -4 ------- Run | Yrd Mat Sub Rec Scr Fac Fac Was Fac Ext Cet Arc Hub Fac Was Fac Arm Slots Evolved 12 | . . . . . 8 2 . . . . . . 2 . . . Power 2 | . . . . . 1 . . . . . . . 1 . . . Propulsion 2 | . . . . . 2 . . . . . . . . . . . Utility 7 | . . . . . 4 2 . . . . . . 1 . . . Weapon 1 | . . . . . 1 . . . . . . . . . . . Parts Attached 247 | 6 13 16 4 . 46 40 13 10 16 13 4 11 6 8 31 10 Power 41 | 1 2 2 . . 9 5 1 2 2 2 1 2 . 3 6 3 Engine 14 | 1 2 2 . . 6 2 1 . . . . . . . . . Core 7 | . . . . . . 2 . 2 2 . . . . . 1 . Reactor 20 | . . . . . 3 1 . . . 2 1 2 . 3 5 3 Propulsion 36 | 2 . 3 2 . 10 5 2 . . 3 . . 2 2 4 1 Treads 19 | 2 . 3 2 . 3 . . . . 3 . . 1 2 2 1 Leg 4 | . . . . . . 4 . . . . . . . . . . Wheel 13 | . . . . . 7 1 2 . . . . . 1 . 2 . Hover . | . . . . . . . . . . . . . . . . . Flight . | . . . . . . . . . . . . . . . . . Utility 94 | 1 4 5 2 . 14 19 5 5 9 3 3 5 3 1 13 2 Device 46 | . . 1 . . 5 14 1 5 . 1 3 4 1 1 9 1 Storage 8 | 1 2 . 1 . 1 1 . . 2 . . . . . . . Processor 8 | . . . . . 3 1 . . 1 . . 1 1 . 1 . Hackware 6 | . . . . . . 1 . . 1 . . . . . 3 1 Protection 26 | . 2 4 1 . 5 2 4 . 5 2 . . 1 . . . Artifact . | . . . . . . . . . . . . . . . . . Weapon 76 | 2 7 6 . . 13 11 5 3 5 5 . 4 1 2 8 4 Energy Gun 15 | 2 4 3 . . 6 . . . . . . . . . . . Energy Cannon 21 | . . 1 . . 4 8 . . . 1 . 2 1 . 4 . Ballistic Gun 32 | . 2 1 . . 1 3 4 1 5 4 . 2 . 2 3 4 Ballistic Cannon 1 | . . . . . 1 . . . . . . . . . . . Launcher 3 | . 1 . . . . . . 2 . . . . . . . . Special Weapon 2 | . . . . . 1 . . . . . . . . . 1 . Impact Weapon 1 | . . 1 . . . . . . . . . . . . . . Slashing Weapon 1 | . . . . . . . 1 . . . . . . . . . Piercing Weapon . | . . . . . . . . . . . . . . . . . Special Melee Weapon . | . . . . . . . . . . . . . . . . . Unidentified Prototypes 21 | . . . . . 2 3 . 3 2 4 . 5 1 1 . . Corrupted Parts 1 | . . . . . 1 . . . . . . . . . . . System Corruption 5 | . . . . . 5 . . . . . . . . . . . Parts Lost 112 | . 5 9 . . 24 19 4 . 4 . . 1 4 . 21 21 Power 23 | . 1 1 . . 4 4 1 . 1 . . . 1 . 5 5 Propulsion 16 | . . 2 . . 6 2 . . . . . . 2 . 2 2 Utility 38 | . . 3 . . 6 10 1 . 2 . . 1 1 . 7 7 Weapon 35 | . 4 3 . . 8 3 2 . 1 . . . . . 7 7 Highest Loss Streak 13 | . 1 3 . . 13 5 4 . 1 . . 1 2 . 6 11 To Critical Strikes 4 | . . . . . 1 . . . . . . . 1 . 1 1 Average Backups 15 | 1 10 10 8 17 12 15 15 18 18 18 18 17 16 16 17 18 Power . | . 1 1 . . . . 1 1 1 1 1 1 . . . . Propulsion 1 | . 1 1 1 3 1 2 . . . . 1 1 1 . 2 4 Utility 6 | . 5 4 2 5 4 5 5 8 9 8 8 7 6 6 6 5 Weapon 5 | . 1 2 3 5 5 5 7 7 6 6 7 6 6 7 7 6 Tool/Special . | . . . . . . . . . . . . . . . . . Unused Backups 38 | . 2 3 1 4 9 5 . 1 4 1 1 2 . 1 1 3 Power 3 | . . 1 . . . . . 1 . 1 . . . . . . Propulsion 6 | . 1 . . . 1 2 . . . . . 1 . . . 1 Utility 7 | . 1 1 . 1 2 . . . 1 . . 1 . . . . Weapon 19 | . . 1 1 3 4 3 . . 3 . 1 . . 1 . 2 Tool/Special 3 | . . . . . 2 . . . . . . . . . 1 . Average Slot Usage (%) 89 | . 96 95 97 97 69 93 79 88 87 88 87 88 88 82 87 82 Engine 5 | . 14 14 14 14 6 2 3 . . . . . . . . . Core 1 | . . . . . . 2 5 9 11 5 2 . . . 2 . Reactor 4 | . . . . . 2 5 1 . . 4 7 11 14 14 11 12 Treads 13 | . 27 27 28 28 2 . . . . 9 11 11 9 7 9 10 Leg 1 | . . . . . . 14 1 . . . . . . . . . Wheel 3 | . . . . . 16 8 10 11 11 1 . . . . 1 . Device 11 | . . . . . 8 21 12 17 17 12 16 17 20 16 22 13 Storage 7 | . 14 9 11 14 4 5 5 5 5 5 5 5 5 5 5 4 Processor 3 | . . . . . 5 . 5 5 5 11 11 11 5 5 5 8 Hackware 3 | . . . . . . 4 5 5 5 5 5 5 5 5 6 14 Protection 9 | . 13 13 13 11 4 5 9 10 10 9 5 5 9 10 6 . Energy Gun 7 | . 21 22 14 14 7 . . . . . . . . . . . Energy Cannon 2 | . . 1 . . 6 11 2 . . 2 . 2 3 . 2 1 Ballistic Gun 9 | . 2 2 14 14 2 4 11 14 17 14 17 14 11 15 11 12 Peak Build Rating 164 | 6 11 14 14 17 84 107 107 86 101 132 134 140 164 150 153 132 Average Rating 75 | 4 8 11 13 15 59 92 75 79 95 124 132 132 154 138 138 111 On Entrance 76 | . 6 11 13 14 15 84 106 79 86 95 132 133 133 133 143 123 Avg Prop Armor Cover (%) 7 | . . . . . 3 . . . . 4 . . . . 9 . Naked Turns 16 | . . . . . . . . . . . . . . . . 16 Heaviest Build 163 | 14 32 39 59 59 134 144 96 91 110 108 106 125 163 149 151 106 Greatest Support 160 | 40 40 40 40 40 83 80 80 56 56 160 160 160 160 160 160 155 Greatest Overweight (x) 15 | . 1 . 1 1 14 5 1 1 1 1 . . 15 1 14 . Average Overweight (x) . | . . . . 1 2 2 . 1 1 . . . . . . . Largest Inventory Capacity 20 | 8 15 15 20 20 20 20 20 20 20 20 20 20 20 20 20 20 Average Capacity 18 | 6 14 12 17 20 17 20 20 20 20 20 20 20 20 20 20 19 Most Carried 20 | 2 15 15 14 20 20 20 20 20 20 20 20 20 20 20 20 20 Average Carried 16 | 1 10 11 8 17 14 19 16 19 19 19 20 19 19 19 19 18 Final Capacity 20 | 8 15 5 20 20 20 20 20 20 20 20 20 20 20 20 20 5 Final Carried 20 | 2 15 5 14 20 20 20 20 20 20 20 20 20 20 20 20 5 Scrap Suit Usage (%) 1 | . . . . . 12 2 . . . . . . . . . . Parts Cannibalized 7 | . . . . . 4 3 . . . . . . . . . . Class Distribution -------------------- 23% | Scavenger-Tank 19% | Mutant 17% | Commander-Mutant 10% | Scavenger-Gunner 9% | Scavenger-Scrapper 5% | Commander-Tank 5% | Tank 3% | Scavenger-Mutant Dominant Class ---------------- Mutant | -10/Materials Mutant | -10/Subcaves Commander-Mutant | -9/Recycling Commander-Mutant | -9/Scraptown Scavenger-Scrapper | -6/Factory Scavenger-Scrapper | -5/Factory Tank | -5/Waste Gunner | -5/Factory Commander-Tank | -5/Extension Commander-Tank | -5/Cetus Scavenger-Gunner | -5/Archives Scavenger-Gunner | -5/Hub_04(d) Scavenger-Tank | -4/Factory Scavenger-Tank | -4/Waste Scavenger-Tank | -4/Factory Hacker-Tank | -4/Armory Resources | -11 -10 -10 -9 -9 -6 -5 -5 -5 -5 -5 -5 -5 -4 -4 -4 -4 ----------- Run | Yrd Mat Sub Rec Scr Fac Fac Was Fac Ext Cet Arc Hub Fac Was Fac Arm Matter Collected 12878 | 190 255 189 62 10 760 1177 898 337 1571 1135 160 679 1337 375 2977 766 Remotely . | . . . . . . . . . . . . . . . . . Salvage Created 20871 | . 552 827 320 . 1759 3357 1012 492 1891 707 311 1323 1831 217 5072 1200 Parts 951 | . 44 52 13 . 74 142 16 25 89 39 17 83 91 1 212 53 Haulers Intercepted 9 | . 2 . . . 1 3 . 2 . . . 1 . . . . Recyclers Shooed 19 | . . . 1 . 2 3 . 2 1 . . 1 7 . 2 . Parts Field Recycled . | . . . . . . . . . . . . . . . . . Retrieved Matter . | . . . . . . . . . . . . . . . . . Parts Self-Destructed 8 | . . 8 . . . . . . . . . . . . . . Prevented 5 | . . 5 . . . . . . . . . . . . . . Parts Restored . | . . . . . . . . . . . . . . . . . Kills | -11 -10 -10 -9 -9 -6 -5 -5 -5 -5 -5 -5 -5 -4 -4 -4 -4 ------- Run | Yrd Mat Sub Rec Scr Fac Fac Was Fac Ext Cet Arc Hub Fac Was Fac Arm Combat Hostiles Destroyed 303 | . 13 19 5 . 32 53 3 3 25 4 3 12 30 . 75 26 Melee 2 | . . . . . . . . . . . . . . . 1 1 Guns 183 | . 5 9 4 . 11 17 2 3 25 4 3 11 23 . 47 19 Cannons 65 | . . 5 . . 15 28 1 . . . . 1 2 . 11 2 AOE 27 | . 6 2 1 . 2 2 . . . . . . 1 . 10 3 Classes Destroyed 24 | . 7 3 3 . 2 4 1 1 . . . . 1 . 2 . Worker 18 | . 1 . . . 6 2 . 1 . . . 3 1 . 4 . Builder 18 | . 2 . . . 2 3 . 1 2 . . 1 3 . 4 . Tunneler 1 | . 1 . . . . . . . . . . . . . . . Hauler 9 | . 2 . . . 1 3 . 2 . . . 1 . . . . Recycler 11 | . . . 3 . 1 1 . . 2 . . 1 . . 3 . Mechanic 1 | . . . . . . . . . . . . . . . 1 . Operator 3 | . . . . . . . . 1 1 . 1 . . . . . Turret 2 | . . 2 . . . . . . . . . . . . . . Watcher 3 | . 1 . . . . . . 1 . . . 1 . . . . Swarmer 61 | . 6 5 1 . 11 9 . . 3 . . 1 5 . 9 11 Saboteur 3 | . . . . . . . . . . . . . . . 2 1 Grunt 111 | . 7 . . . 16 22 . 1 6 . . 1 10 . 41 7 Brawler 4 | . . . . . . 3 . . . . . . . . 1 . Duelist 4 | . . . . . . 1 . . . . . . . . 3 . Protector 2 | . . . 1 . . . . . . . . 1 . . . . Sentry 30 | . . 1 2 . 1 3 . 1 9 . 3 3 1 . 6 . Demolisher 2 | . . . 1 . . . . . . . . . . . . 1 Specialist 2 | . . . . . . . . . . . . . 2 . . . Hunter 26 | . . . . . . 4 . . 6 . . . 6 . 6 4 Programmer 32 | . . . . . 4 10 . 1 . . . 2 6 . 7 2 Behemoth 2 | . . . . . . 1 . . . . . 1 . . . . Compactor 3 | . . . . . . . 3 . . . . . . . . . Cetus Guard 4 | . . . . . . . . . . 4 . . . . . . Enhanced Grunt 2 | . . . . . . . . . . 1 . 1 . . . . Lightning 3 | . . . . . . . . . . . . 3 . . . . Subdweller 13 | . . 13 . . . . . . . . . . . . . . Scrapoid 2 | . . . . . 2 . . . . . . . . . . . Thug 4 | . . . . . . . 2 . . 2 . . . . . . Butcher 3 | . . . . . . . . . 2 1 . . . . . . Martyr 2 | . . . . . . . 2 . . . . . . . . . Best Kill Streak 11 | . 5 6 4 . 8 9 1 2 6 3 3 5 6 . 11 7 Combat Bots Only 9 | . 3 4 2 . 7 6 1 1 5 3 3 5 5 . 9 7 Max Kills in Single Turn 4 | . 3 2 1 . 4 2 1 2 2 1 1 4 2 . 4 2 Gunslinging 1 | . . . . . . 1 . . . . . . 1 . 1 1 Exploded 3 | . 2 2 1 . 1 1 . . . . . . 1 . 3 1 Melee 1 | . . . . . . . . . . . . . . . 1 1 Uniques/NPCs Destroyed 1 | . . . . . . . . . . 1 . . . . . . A7 (-5/Cetus) Combat | -11 -10 -10 -9 -9 -6 -5 -5 -5 -5 -5 -5 -5 -4 -4 -4 -4 -------- Run | Yrd Mat Sub Rec Scr Fac Fac Was Fac Ext Cet Arc Hub Fac Was Fac Arm Hostile Shots Fired 2341 | . 70 108 19 . 319 407 5 27 161 23 . 55 236 . 573 338 Missed 624 | . 16 42 5 . 96 106 . 8 40 4 . 13 47 . 138 109 Hits 1717 | . 54 66 14 . 223 301 5 19 121 19 . 42 189 . 435 229 Melee 27 | . . . . . . 7 5 . . . . . . . 12 3 Projectile 1690 | . 54 66 14 . 223 294 . 19 121 19 . 42 189 . 423 226 AOE 11 | . . . 6 . 1 . . . . . . . . . . 4 Critical Strikes 78 | . 2 . . . 5 9 2 1 8 3 . 8 7 . 23 10 Part Disruptions 4 | . . . . . . 1 . . . . . 1 1 . . 1 Damage Taken 25204 | . 746 1044 325 . 3487 4183 300 379 1755 426 . 1137 2093 . 6429 2900 Core 2766 | . 104 83 . . 728 320 75 47 171 . . 87 113 . 388 650 Absorbed by Shields 6581 | . . . 3 . 37 808 12 . 807 80 . 63 1480 . 2564 727 Reduced by Siege Mode 658 | . . . . . . . . . . . . 53 51 . 554 . Redirected to Shielding 12 | . 12 . . . . . . . . . . . . . . . Ignored by Resistances 915 | . . . . . 41 466 12 . . . . 192 155 . 49 . Regen/Repaired (Parts) 4986 | . 43 . . . 226 26 100 17 578 198 238 67 215 56 2874 348 Core Remaining (%) 42 | 100 . . . 25 14 . . . . . . 30 . . . . Volleys Fired 1111 | . 63 77 16 . 132 145 46 27 100 76 8 53 108 1 198 61 Largest 4 | . 2 2 2 . 4 4 3 3 3 3 3 3 3 3 3 3 Hottest 320 | . 90 125 80 . 320 320 166 75 94 196 105 105 168 105 268 99 Shots Fired 2611 | . 110 151 32 . 286 378 127 72 286 194 22 130 226 4 459 134 Gun 1942 | . 106 130 32 . 130 124 119 72 285 140 22 120 177 4 363 118 Cannon 646 | . . 21 . . 154 254 8 . . 54 . 10 49 . 87 9 Launcher 20 | . 4 . . . . . . . 1 . . . . . 8 7 Special 3 | . . . . . 2 . . . . . . . . . 1 . Kinetic 1609 | . 7 7 16 . 46 113 119 72 285 140 22 120 177 4 363 118 Thermal 742 | . 72 21 . . 225 265 8 . . 54 . 10 31 . 56 . Explosive 20 | . 4 . . . . . . . 1 . . . . . 8 7 Electromagnetic 237 | . 27 123 16 . 13 . . . . . . . 18 . 31 9 Robot Hit Streak 27 | . 15 21 10 . 19 12 12 10 11 13 15 9 27 6 21 8 Robot Miss Streak 8 | . 5 2 3 . 5 5 4 3 8 3 3 7 4 . 4 4 Penetration Max 2 | . . . . . . 1 1 . 1 2 1 1 1 . 2 1 Secondary Targets 38 | . 1 . 1 . . 1 . 1 6 1 . 2 5 . 13 7 Max Gunslinging Chain 1 | . 1 . 1 . . 1 . 1 1 1 . 1 1 . 1 1 Shots Hit Robots 1624 | . 73 87 25 . 152 213 74 47 167 129 14 72 152 3 337 79 Core Hits 791 | . 31 32 13 . 70 106 32 25 76 62 8 48 65 1 172 50 Critical Kills 43 | . . . . . 1 4 1 . 4 4 2 5 7 1 13 1 Critical Parts Destroyed 71 | . . . . . . . . . 7 3 . 10 18 . 32 1 Critical Strikes 142 | . 2 3 . . 9 4 1 1 13 8 2 16 29 1 51 2 Burn 9 | . 2 . . . 7 . . . . . . . . . . . Meltdown 7 | . . . . . 1 4 . . . 2 . . . . . . Destroy 113 | . . . . . . . 1 . 13 6 2 16 26 1 46 2 Corrupt 12 | . . 3 . . 1 . . . . . . . 3 . 5 . Sever 1 | . . . . . . . . 1 . . . . . . . . Melee Attacks 19 | . . 11 . . . . 2 6 . . . . . . . . Impact 11 | . . 11 . . . . . . . . . . . . . . Slashing 8 | . . . . . . . 2 6 . . . . . . . . Piercing . | . . . . . . . . . . . . . . . . . Sneak Attacks 4 | . . . . . . . 2 2 . . . . . . . . Combat Hostiles . | . . . . . . . . . . . . . . . . . Follow-up Attacks . | . . . . . . . . . . . . . . . . . Damage Inflicted 52965 | 8 1378 1441 689 . 4946 7742 2499 1025 3729 5012 392 2584 5164 81 13354 2921 Guns 33741 | . 870 963 523 . 2053 2214 2226 795 3713 3412 392 2045 4103 81 8757 1594 Cannons 12253 | . . 375 . . 1990 4927 134 . . 1600 . 32 858 . 2075 262 Explosions 6244 | . 466 103 156 . 837 558 . . . . . 442 132 . 2485 1065 Melee 369 | . . . . . . . 139 230 . . . . . . . . Ramming 358 | 8 42 . 10 . 66 43 . . 16 . . 65 71 . 37 . Kinetic 30133 | . 54 . 273 . 601 2087 2226 795 3713 3412 392 2045 4103 81 8757 1594 Thermal 13008 | . 609 478 97 . 3341 5128 134 . . 1600 . 32 73 . 1516 . Explosive 4618 | . 404 . 59 . 698 484 . . . . . . 132 . 1776 1065 Electromagnetic 4479 | . 269 963 250 . 240 . . . . . . 442 785 . 1268 262 Impact . | . . . . . . . . . . . . . . . . . Slashing 369 | . . . . . . . 139 230 . . . . . . . . Piercing . | . . . . . . . . . . . . . . . . . Highest Corruption 31 | . . . . . 7 16 14 20 20 20 10 7 5 5 17 31 Average Corruption 10 | . . . . . 5 9 14 18 20 13 6 4 1 5 8 18 Corruption Purged 30 | . . . . . . 10 . . . 10 10 . . . . . Corruption Blocked . | . . . . . . . . . . . . . . . . . Effects 509 | . . . . . 54 84 36 34 91 37 11 10 . 30 93 29 Message Errors 102 | . . . . . 14 12 7 8 22 7 1 2 . 8 16 5 Matter Fused 134 | . . . . . 18 27 11 8 20 8 3 1 . 10 24 4 Heat Flow Errors 52 | . . . . . 8 6 2 4 9 3 2 . . 2 15 1 Energy Discharges 53 | . . . . . 5 8 2 1 5 6 3 3 . 5 12 3 Parts Rejected 13 | . . . . . 1 3 1 2 . . . 1 . . 4 1 Parts Fused 6 | . . . . . . 4 1 . . . . . . . . 1 Data Loss (minor) 37 | . . . . . 2 8 1 . 12 2 . 1 . 2 7 2 Data Loss (major) 12 | . . . . . . 3 . . 3 . . . . 1 1 4 Misfires 16 | . . . . . 2 1 2 2 2 2 . . . 1 3 1 Alerts 11 | . . . . . . . 1 3 3 2 . . . 1 . 1 Misdirections 8 | . . . . . . 1 2 2 1 . . . . . . 2 Weapon Failures 65 | . . . . . 4 11 6 4 14 7 2 2 . . 11 4 Overload Shots . | . . . . . . . . . . . . . . . . . Overflow Damage 818 | . 38 65 . . 79 116 . 42 . 10 . 10 69 . 292 97 Projectiles 246 | . . 32 . . 26 82 . . . 10 . . 67 . 29 . Explosions 479 | . 38 33 . . 4 34 . . . . . 10 . . 263 97 Melee 93 | . . . . . 49 . . 42 . . . . 2 . . . Knockbacks 5 | . . . 1 . 2 1 . . . . . . . . 1 . Impact 4 | . . . 1 . 1 1 . . . . . . . . 1 . Kinetic 1 | . . . . . 1 . . . . . . . . . . . Secondary . | . . . . . . . . . . . . . . . . . Self-Inflicted Damage 919 | . 132 65 . . 188 266 . . 7 . . 74 54 . 133 . Shots 21 | . 6 2 . . 3 4 . . . . . 1 1 . 4 . Rammed 32 | 3 10 . 1 . 2 . . . 2 . . 6 4 . 4 . Targets Rammed 38 | 3 10 . 2 . 2 4 . . 2 . . 7 4 . 4 . Kicked 4 | . . . . . . 4 . . . . . . . . . . Crushed 2 | . . . 1 . . . . . . . . 1 . . . . Highest Temperature 443 | . 372 114 90 . 300 326 318 160 240 292 207 112 336 267 443 . Average Temperature 106 | . 137 26 40 . 110 125 180 34 53 70 80 26 116 96 107 . Received Heat Transfer 3821 | . 339 240 . . 527 451 18 72 339 . . 45 291 . 1225 274 Effects 32 | . 4 . . . . 11 2 . 1 . . . 10 . 4 . Shutdowns 1 | . . . . . . . . . . . . . 1 . . . Energy Bleed 9 | . 2 . . . . 2 2 . 1 . . . 1 . 1 . Interference 18 | . 1 . . . . 9 . . . . . . 8 . . . Short Circuit 3 | . 1 . . . . . . . . . . . . . 2 . Damage (minor) 1 | . . . . . . . . . . . . . . . 1 . Siege Activations 14 | . . . . . . . . . . . . 1 4 2 7 . Total Turns 741 | . . . . . . . . . . . . 30 78 441 192 . Longest Duration 295 | . . . . . . . . . . . . 30 31 295 69 . Martial Activations . | . . . . . . . . . . . . . . . . . Shielding Activations . | . . . . . . . . . . . . . . . . . Robots Disrupted . | . . . . . . . . . . . . . . . . . Combat Hostiles . | . . . . . . . . . . . . . . . . . Robots Corrupted 17 | . . 3 . . 1 . . . . . . 2 4 . 6 1 Combat Hostiles 14 | . . 3 . . . . . . . . . . 4 . 6 1 Parts Fried 40 | . 2 8 . . 1 . . . . . . 6 4 . 18 1 Impact Corruptions 3 | . . . . . 2 . . . . . . . 1 . . . Robots Melted 16 | . 2 . . . 5 7 . . . 2 . . . . . . Combat Hostiles 12 | . 2 . . . 4 6 . . . . . . . . . . Parts Melted 57 | . 6 1 . . 18 19 . . 1 8 . . . . 4 . Heat Transferred 20305 | . 1710 681 100 . 6664 7281 200 . . 2077 . 50 100 . 1442 . Parts Sabotaged 2 | . . . . . . . . . . . . . . . 1 1 Parts Stolen . | . . . . . . . . . . . . . . . . . Parts Stripped . | . . . . . . . . . . . . . . . . . Power Chain Reactions 7 | . 2 3 1 . 1 . . . . . . . . . . . Alert | -11 -10 -10 -9 -9 -6 -5 -5 -5 -5 -5 -5 -5 -4 -4 -4 -4 ------- Run | Yrd Mat Sub Rec Scr Fac Fac Was Fac Ext Cet Arc Hub Fac Was Fac Arm Maximum Alert Level 5 | . . . . . 3 4 2 1 3 2 1 2 2 . 5 4 Low Security (%) 42 | 100 100 . 100 . 59 5 39 41 22 . 41 22 50 100 10 . Level 1 26 | . . . . . 19 40 58 58 37 . 58 49 47 . 17 . Level 2 14 | . . . . . 17 19 2 . 14 100 . 28 1 . 20 . Level 3 11 | . . . . . 2 13 . . 24 . . . . . 37 96 Level 4 4 | . . . . . . 21 . . . . . . . . 13 3 Level 5 . | . . . . . . . . . . . . . . . . . High Security . | . . . . . . . . . . . . . . . . . Max Security . | . . . . . . . . . . . . . . . . . Peak Influence 1602 | . 91 . 166 . 704 1487 409 358 947 625 376 673 519 180 1602 1132 Initial 784 | . . . 112 . . 338 409 59 95 519 199 27 311 180 . 784 Average 338 | . 28 . 41 . 226 624 229 200 417 537 228 320 180 32 678 920 Influence Increases 13861 | . 441 395 295 . 1567 2005 90 733 1507 402 262 1677 1063 . 2666 758 Destroy 0b10 Robot/C 6800 | . 260 160 100 . 680 1060 . 360 800 160 80 520 600 . 1500 520 Destroy 0b10 Robot/NC 385 | . 35 . 20 . 50 45 . 45 40 10 10 50 20 . 60 . Destroy Leader 1128 | . 56 10 . . 152 196 . 98 50 . . 126 110 . 250 80 Allied During Kill 1326 | . . . 5 . 11 . . 207 474 170 90 369 . . . . Successful Hack 305 | . 6 . 29 . 38 48 . . 45 . . 38 9 . 52 40 Select Force Hacks 120 | . . . 120 . . . . . . . . . . . . . Disable Machine 1095 | . . . 15 . 165 180 . . 15 . 60 270 75 . 315 . Destroy Structure 1727 | . 39 . 6 . 126 326 90 8 68 62 22 304 204 . 384 88 Partial Spotted 15 | . . . . . 15 . . . . . . . . . . . Lose Combat Pursuer 960 | . 45 225 . . 330 150 . 15 15 . . . 45 . 105 30 Influence Decreases 12777 | . 440 162 529 . 875 1526 1176 622 775 831 682 1119 1185 515 1066 1274 Entered New Map 3604 | . . 1 122 . . 354 762 26 101 409 300 52 326 335 . 816 Time Decay 6084 | . 390 161 407 . 521 672 334 326 574 342 342 542 509 180 546 238 Search Patrol Dispatched 100 | . . . . . 100 . . . . . . . . . . . Lost Part 1000 | . 50 . . . 210 190 40 . 40 . . 10 40 . 210 210 Lost Ally 564 | . . . . . 44 10 40 120 60 80 40 140 10 . 10 10 Purge Threat 1425 | . . . . . . 300 . 150 . . . 375 300 . 300 . Squads Dispatched 91 | . 2 . . . 21 16 . 6 4 . . 5 13 . 19 5 Investigation 33 | . 1 . . . 10 7 . . 2 . . . 5 . 6 2 Extermination 21 | . . . . . 4 5 . 1 . . . 2 3 . 5 1 Reinforcement 20 | . 1 . . . 3 2 . 2 1 . . 3 5 . 3 . Assault 11 | . . . . . 1 2 . . 1 . . . . . 5 2 Garrison 6 | . . . . . 3 . . 3 . . . . . . . . Intercept . | . . . . . . . . . . . . . . . . . Searches Triggered 1 | . . . . . 1 . . . . . . . . . . . Construction Impeded 7 | . . . . . 2 . . . . . . 1 2 . 2 . Haulers Reinforced 7 | . . . . . 1 2 . 2 . . . 1 1 . . . Active Scanning Responses . | . . . . . . . . . . . . . . . . . Cargo Convoy Interrupts . | . . . . . . . . . . . . . . . . . Stealth | -11 -10 -10 -9 -9 -6 -5 -5 -5 -5 -5 -5 -5 -4 -4 -4 -4 --------- Run | Yrd Mat Sub Rec Scr Fac Fac Was Fac Ext Cet Arc Hub Fac Was Fac Arm Distress Signals 24 | . . . . . 3 4 . 3 3 3 . 3 1 . 3 1 Communications Jammed 66 | . . . . . . 37 . . . . . 29 . . . . Distress Signals 66 | . . . . . . 37 . . . . . 29 . . . . Times Spotted 482 | . 26 32 6 . 63 70 6 18 38 9 5 37 38 . 100 34 Peak Tracking Total 10 | . 4 5 2 . 7 10 4 4 4 5 2 5 5 . 10 9 Tactical Retreats 37 | . 2 5 . . 11 6 . 1 1 . . . 3 . 6 2 Traps | -11 -10 -10 -9 -9 -6 -5 -5 -5 -5 -5 -5 -5 -4 -4 -4 -4 ------- Run | Yrd Mat Sub Rec Scr Fac Fac Was Fac Ext Cet Arc Hub Fac Was Fac Arm Traps Triggered 25 | . 2 1 . . 4 7 . . 6 . . 2 1 . 2 . Indirectly . | . . . . . . . . . . . . . . . . . Trap Hack Attempts . | . . . . . . . . . . . . . . . . . Triggered . | . . . . . . . . . . . . . . . . . Disarmed . | . . . . . . . . . . . . . . . . . Reprogrammed . | . . . . . . . . . . . . . . . . . Reused . | . . . . . . . . . . . . . . . . . Traps Extracted . | . . . . . . . . . . . . . . . . . Installed . | . . . . . . . . . . . . . . . . . Triggered . | . . . . . . . . . . . . . . . . . Machines | -11 -10 -10 -9 -9 -6 -5 -5 -5 -5 -5 -5 -5 -4 -4 -4 -4 ---------- Run | Yrd Mat Sub Rec Scr Fac Fac Was Fac Ext Cet Arc Hub Fac Was Fac Arm Machines Disabled 78 | . . 2 1 . 11 12 . . 3 . 4 18 5 . 22 . Max in Single Turn 8 | . . 1 1 . 2 3 . . 1 . 1 8 1 . 7 . Garrison Access 4 | . . . . . . 1 . . . . . 1 1 . 1 . Network Hub 1 | . . . . . . . . . . . . 1 . . . . Machines Repaired . | . . . . . . . . . . . . . . . . . Machines Dismantled . | . . . . . . . . . . . . . . . . . Machines Sabotaged . | . . . . . . . . . . . . . . . . . Overloaded Fab Kills . | . . . . . . . . . . . . . . . . . Hacking | -11 -10 -10 -9 -9 -6 -5 -5 -5 -5 -5 -5 -5 -4 -4 -4 -4 --------- Run | Yrd Mat Sub Rec Scr Fac Fac Was Fac Ext Cet Arc Hub Fac Was Fac Arm Machines Accessed 95 | . 3 1 10 3 16 22 . 2 9 1 . 9 8 . 9 2 Terminals 48 | . 2 . 6 . 6 9 . 2 9 1 . 8 2 . 2 1 Fabricators 5 | . . . . . . 2 . . . . . . 1 . 1 1 Repair Stations 4 | . 1 . . . 1 1 . . . . . . . . 1 . Recycling Units 25 | . . . 4 . 8 6 . . . . . . 4 . 3 . Scanalyzers 4 | . . . . . 1 2 . . . . . . . . 1 . Garrison Access 5 | . . . . . . 2 . . . . . 1 1 . 1 . Total Hacks 217 | . 11 1 21 17 26 44 . 3 18 3 . 23 17 . 24 9 Successful 115 | . 4 1 13 17 14 16 . 2 7 . . 10 10 . 17 4 Failed 100 | . 6 . 8 . 11 28 . 1 11 3 . 13 7 . 7 5 Catastrophic 14 | . . . 1 . 2 4 . . . . . 1 2 . 3 1 Database Lockouts 2 | . 1 . . . 1 . . . . . . . . . . . Manual 86 | . 5 . 18 . 13 20 . 2 4 1 . 7 10 . 5 1 Terminals 108 | . 5 . 16 . 9 18 . 3 18 3 . 21 6 . 5 4 Fabricators 14 | . . . . . . 3 . . . . . . 3 . 3 5 Repair Stations 18 | . 6 . . . 3 4 . . . . . . . . 5 . Recycling Units 35 | . . . 5 . 11 10 . . . . . . 5 . 4 . Scanalyzers 12 | . . . . . 3 6 . . . . . . . . 3 . Garrison Access 12 | . . . . . . 3 . . . . . 2 3 . 4 . Terminal Hacks 52 | . 1 1 3 17 2 4 . 2 6 . . 9 2 . 4 1 Record 12 | . . . . 12 . . . . . . . . . . . . Part Schematic 1 | . . . 1 . . . . . . . . . . . . . Robot Schematic 1 | . . . 1 . . . . . . . . . . . . . Robot Analysis 7 | . 1 . 1 5 . . . . . . . . . . . . Open Door 5 | . . . . . . . . . 5 . . . . . . . Level Access Points 1 | . . . . . . . . . . . . 1 . . . . Branch Access Points 2 | . . . . . 1 1 . . . . . . . . . . Terminal Index 1 | . . . . . . . . . . . . 1 . . . . Alert Level 4 | . . . . . . . . 1 . . . 2 . . 1 . Unreport Threat 10 | . . . . . . 2 . 1 . . . 3 2 . 2 . Locate Traps 1 | . . . . . . . . . . . . 1 . . . . Zone Layout 6 | . . . . . 1 1 . . 1 . . 1 . . 1 1 Proto ID Catalog 1 | . . 1 . . . . . . . . . . . . . . Fabricator Hacks 6 | . . . . . . . . . . . . . 2 . 2 2 Load Schematic 3 | . . . . . . . . . . . . . 1 . 1 1 Build 3 | . . . . . . . . . . . . . 1 . 1 1 Repair Station Hacks 10 | . 3 . . . 2 1 . . . . . . . . 4 . Scan Component 6 | . 2 . . . 1 1 . . . . . . . . 2 . Repair 4 | . 1 . . . 1 . . . . . . . . . 2 . Recycling Unit Hacks . | . . . . . . . . . . . . . . . . . Scanalyzer 9 | . . . . . 1 5 . . . . . . . . 3 . Insert Component 1 | . . . . . . 1 . . . . . . . . . . Analyze 1 | . . . . . . 1 . . . . . . . . . . Retrieve Study 7 | . . . . . 1 3 . . . . . . . . 3 . Garrison Access Hacks 4 | . . . . . . 1 . . . . . 1 1 . 1 . Seal Access 4 | . . . . . . 1 . . . . . 1 1 . 1 . Unauthorized Hacks 34 | . . . 10 . 9 5 . . 1 . . . 5 . 3 1 Terminals 7 | . . . 6 . . . . . 1 . . . . . . . Botnet 2 | . . . 1 . . . . . 1 . . . . . . . Skim 5 | . . . 5 . . . . . . . . . . . . . Fabricators 2 | . . . . . . . . . . . . . 1 . . 1 Prioritize 2 | . . . . . . . . . . . . . 1 . . 1 Repair Stations 2 | . . . . . 1 . . . . . . . . . 1 . Patch 2 | . . . . . 1 . . . . . . . . . 1 . Recycling Units 23 | . . . 4 . 8 5 . . . . . . 4 . 2 . Tunnel 4 | . . . 4 . . . . . . . . . . . . . Fedlink 18 | . . . . . 7 5 . . . . . . 4 . 2 . Scrapoids 1 | . . . . . 1 . . . . . . . . . . . Scanalyzers . | . . . . . . . . . . . . . . . . . Garrison Access . | . . . . . . . . . . . . . . . . . Data Cores Recovered 1 | . . . . . . . . 1 . . . . . . . . Used . | . . . . . . . . . . . . . . . . . Hacking Detections 58 | . 2 . 6 . 6 16 . 2 7 1 . 8 3 . 5 2 Full Trace Events 8 | . . . . . 1 2 . . 1 . . . 1 . 2 1 Feedback Events 2 | . . . . . . 1 . . . . . . . . 1 . Corruption 2 | . . . . . . 1 . . . . . . . . 1 . Feedback Blocked . | . . . . . . . . . . . . . . . . . Robot Schematics Acquired 1 | . . . 1 . . . . . . . . . . . . . Robots Built 2 | . . . . . . . . . . . . . . . 1 1 Authchips . | . . . . . . . . . . . . . . . . . Time 100 | . . . . . . . . . . . . . 40 . 40 20 Total Robot Build Rating 2 | . . . . . . . . . . . . . . . 1 1 Part Schematics Acquired 2 | . . . 1 . . 1 . . . . . . . . . . Parts Built . | . . . . . . . . . . . . . . . . . Authchips . | . . . . . . . . . . . . . . . . . Time . | . . . . . . . . . . . . . . . . . Total Part Build Rating . | . . . . . . . . . . . . . . . . . Part Studies Acquired 6 | . . . . . 1 2 . . . . . . . . 3 . Parts Repaired 4 | . 1 . . . 1 . . . . . . . . . 2 . Time 178 | . 26 . . . 44 . . . . . . . . . 108 . Parts Recycled . | . . . . . . . . . . . . . . . . . Recycled Matter . | . . . . . . . . . . . . . . . . . Retrieved Matter . | . . . . . . . . . . . . . . . . . Retrieved Components . | . . . . . . . . . . . . . . . . . Parts Scanalyzed 1 | . . . . . . 1 . . . . . . . . . . Part Schematics Acquired 1 | . . . . . . 1 . . . . . . . . . . Parts Damaged . | . . . . . . . . . . . . . . . . . Bothacking | -11 -10 -10 -9 -9 -6 -5 -5 -5 -5 -5 -5 -5 -4 -4 -4 -4 ------------ Run | Yrd Mat Sub Rec Scr Fac Fac Was Fac Ext Cet Arc Hub Fac Was Fac Arm Used RIF Installer . | . . . . . . . . . . . . . . . . . Robots Hacked 1 | . . . . . . . . . . . . . . . 1 . Non-combat 1 | . . . . . . . . . . . . . . . 1 . Combat . | . . . . . . . . . . . . . . . . . Robot Hacks Applied 1 | . . . . . . . . . . . . . . . 1 . find_fabricator 1 | . . . . . . . . . . . . . . . 1 . Relay Couplers Released 1 | . . . . . . . . . . . . 1 . . . . Machine Destruction 1 | . . . . . . . . . . . . 1 . . . . Fabnet Peak Effective % . | . . . . . . . . . . . . . . . . . Robots Rewired 24 | . . . 8 . . . . . 16 . . . . . . . Allies Hacked . | . . . . . . . . . . . . . . . . . Hacks Repelled . | . . . . . . . . . . . . . . . . . Allies | -11 -10 -10 -9 -9 -6 -5 -5 -5 -5 -5 -5 -5 -4 -4 -4 -4 -------- Run | Yrd Mat Sub Rec Scr Fac Fac Was Fac Ext Cet Arc Hub Fac Was Fac Arm Total Allies 59 | . . . 8 . 5 . 20 . 19 5 . . . . 1 1 Largest Group 18 | . . . 8 7 7 . 18 8 17 17 12 10 . . 1 1 Highest-Rated Group 954 | . . . 93 84 146 . 677 322 609 954 609 554 . . 14 14 Highest-Rated Ally 159 | . . . 27 27 31 . 50 46 159 159 96 96 . . 14 14 Initial UFD Resources 92 | . . . . . 22 47 67 67 67 67 67 67 70 88 88 92 Total Orders 22 | . . . . . 1 2 . . . . . 7 9 . 2 1 STAY 6 | . . . . . 1 . . . . . . 4 . . 1 . FOLLOW 4 | . . . . . . . . . . . . 3 1 . . . AID 2 | . . . . . . . . . . . . . . . 1 1 EXPLORE 8 | . . . . . . 2 . . . . . . 6 . . . RETURN 2 | . . . . . . . . . . . . . 2 . . . Ally Attacks 569 | . . . 3 . 30 . 89 103 119 45 28 152 . . . . Total Damage 15185 | . . . 31 . 430 . 4506 2594 2239 1355 890 3140 . . . . Kills 74 | . . . 1 . 2 . 9 18 19 6 2 17 . . . . Allies Corrupted 2 | . . . . . . 1 . . . . . 1 . . . . Allies Melted 2 | . . . . . . . . . . 2 . . . . . . Intel | -11 -10 -10 -9 -9 -6 -5 -5 -5 -5 -5 -5 -5 -4 -4 -4 -4 ------- Run | Yrd Mat Sub Rec Scr Fac Fac Was Fac Ext Cet Arc Hub Fac Was Fac Arm Active Infowar (turns) 3934 | . . 126 . . . 421 . . . . 18 1351 . . 2018 . Sensors 1195 | . . . . . . . . . . . 18 857 . . 320 . Terrain 1916 | . . . . . . . . . . . . . . . 1916 . Structural 126 | . . 126 . . . . . . . . . . . . . . Jamming 915 | . . . . . . 421 . . . . . 494 . . . . Robot Analysis Total 7 | . 1 . 1 5 . . . . . . . . . . . . Derelict Logs Recovered 1 | . . 1 . . . . . . . . . . . . . . Drone Launches 8 | . . . . . . 2 . . . . . . 6 . . . Drone Recoveries 5 | . . . . . . . . . . . . . 5 . . . Exploration | -11 -10 -10 -9 -9 -6 -5 -5 -5 -5 -5 -5 -5 -4 -4 -4 -4 ------------- Run | Yrd Mat Sub Rec Scr Fac Fac Was Fac Ext Cet Arc Hub Fac Was Fac Arm Turns Passed 25618 | 102 1591 2866 1693 2987 2090 2614 752 729 1741 761 766 1594 1447 1058 2327 500 Spaces Moved 11960 | 56 808 1372 678 1185 1337 1277 507 554 982 266 141 838 563 312 904 180 Core 127 | 2 . . . . 93 . . . . . . . . . . 32 Treads 7188 | 54 808 1372 678 1185 76 . . . . 241 141 838 560 312 775 148 Legs 619 | . . . . . . 613 6 . . . . . . . . . Wheels 4026 | . . . . . 1168 664 501 554 982 25 . . 3 . 129 . Hover . | . . . . . . . . . . . . . . . . . Flight . | . . . . . . . . . . . . . . . . . Fastest Speed 50 | 50 160 160 160 240 50 100 90 105 105 105 160 160 160 160 145 50 Average Speed 155 | 156 160 160 226 240 109 148 104 105 105 156 160 160 163 161 167 142 Slowest Speed 750 | 160 240 160 240 240 750 470 190 105 105 240 160 160 305 240 290 170 Overloaded Moves . | . . . . . . . . . . . . . . . . . Propulsion Burnouts . | . . . . . . . . . . . . . . . . . Robots Hopped 1 | . . . . . . . . . . . . 1 . . . . Potential Cave-ins 6 | . . . . . 3 . 2 . . . . . 1 . . . Cave-ins Triggered 1 | . . . . . . . . . . . . . 1 . . . Exploration Rate (%) 59 | 3 96 72 99 85 41 49 96 14 84 57 88 67 28 96 25 11 Regions Visited 16 Branch Regions 8 Pre-discovered Areas 8 | . . 1 5 1 1 . . . . . . . . . . . Known Exits Taken 3 | . . . . . 1 . . 1 . . . 1 . . . . Unknown Exits Taken 9 | 1 1 1 1 1 . . . . 1 1 1 . . . 1 . Scrap Searched 6 | . . 5 . 1 . . . . . . . . . . . . Spaces Dug 103 | . . 3 . . 25 19 2 2 . . . 8 26 . 17 1 Terrain Destroyed 1083 | . 37 11 6 . 156 176 24 2 38 51 9 197 119 1 205 51 Melee 5 | . . 3 . . . . . 2 . . . . . . . . Projectile 491 | . . 1 1 . 62 98 24 . 16 51 9 53 70 1 100 5 AOE 583 | . 37 7 5 . 94 77 . . 22 . . 144 49 . 104 44 Terrain Rammed . | . . . . . . . . . . . . . . . . . Walls Destroyed . | . . . . . . . . . . . . . . . . . Machines Disabled . | . . . . . . . . . . . . . . . . . Actions | -11 -10 -10 -9 -9 -6 -5 -5 -5 -5 -5 -5 -5 -4 -4 -4 -4 --------- Run | Yrd Mat Sub Rec Scr Fac Fac Was Fac Ext Cet Arc Hub Fac Was Fac Arm Total 17149 | 66 990 1870 805 1331 1789 1680 638 659 1557 507 672 1019 977 862 1420 307 Wait 3072 | . 63 366 36 133 205 144 56 40 273 128 512 82 256 533 204 41 Move 11945 | 56 807 1371 677 1184 1336 1277 506 553 981 265 140 835 563 311 903 180 Hop 1 | . . . . . . . . . . . . 1 . . . . Pick Up 181 | 2 20 11 10 9 32 24 6 5 8 7 2 5 10 2 24 4 Fast Attach 110 | 6 8 2 1 . 24 12 6 3 6 3 3 6 4 3 20 3 Attach 98 | . 3 11 1 . 22 17 5 1 4 1 . 1 9 2 15 6 Detach 20 | . 1 . . 1 5 3 1 1 1 . 1 2 2 1 1 . Swap 186 | . 6 8 2 . 10 26 7 14 18 14 2 16 13 6 36 8 Drop 142 | . 9 11 3 4 13 13 3 9 19 13 4 11 8 3 15 4 Fire 1111 | . 63 77 16 . 132 145 46 27 100 76 8 53 108 1 198 61 Melee 19 | . . 11 . . . . 2 6 . . . . . . . . Ram 6 | . . . . . 2 . . . 2 . . . . . 2 . Kick 4 | . . . . . . 4 . . . . . . . . . . Crush 27 | 2 10 . 2 . . . . . . . . 7 4 . 2 . Escape Stasis 60 | . . . . . 8 15 . . 37 . . . . . . . Rewire 165 | . . . 57 . . . . . 108 . . . . . . . Trap . | . . . . . . . . . . . . . . . . . Miscellaneous 2 | . . 2 . . . . . . . . . . . . . . Route ------- -11/Scrapyard -10/Materials (discovered 5 exits: [*Mat x3] / [*Min] / *Sub) -10/Subcaves (discovered 2 exits: [*Mat] / *Rec) -9/Recycling (discovered 2 exits: [*Fac] / *Scr) -9/Scraptown (discovered 2 exits: *Fac x2) -6/Factory (discovered 4 exits: *Fac x2 / Low x2) -5/Factory (discovered 6 exits: *Fac x2 / Upp x2 / Ext x2) -5/Waste -5/Factory (discovered 2 exits: *Upp / *Ext) -5/Extension (discovered 2 exits: *Fac / *Cet) -5/Cetus (discovered 2 exits: *Fac / [*Arc]) -5/Archives (discovered 3 exits: *Fac / *Hub x2) -5/Hub_04(d) (discovered 4 exits: *Fac x4) -4/Factory -4/Waste -4/Factory (discovered 3 exits: [*Res] / *Upp / *Arm) -4/Armory History --------- Turn | Location | Event 27 | -11/Scrapyard | Discovered new exit (range 16) 103 | -11/Scrapyard | Entered Materials 313 | -10/Materials | Build established: Mutant 408 | -10/Materials | Central database locked down 424 | -10/Materials | Discovered new exit (range 12) 643 | -10/Materials | Discovered new exit (range 12) 688 | -10/Materials | Discovered new exit (range 7) 1105 | -10/Materials | Repaired Lgt. Armor Plating 1334 | -10/Materials | Discovered new exit (range 5) 1645 | -10/Materials | Discovered new exit (range 5) 1694 | -10/Materials | Entered Subcaves 1779 | -10/Subcaves | Shifting Twisted Machinery released Sub. Beam Cannon 1784 | -10/Subcaves | Shifting Twisted Machinery released Flamer 1848 | -10/Subcaves | Core integrity fell below 50% 1857 | -10/Subcaves | Learned location of Zion (-7) 1857 | -10/Subcaves | Met a Zionite searching for "candidates" 1876 | -10/Subcaves | Lost 3 parts (2n1u) 2058 | -10/Subcaves | A Subdweller sparked back to life 2058 | -10/Subcaves | A Subdweller sparked back to life 2107 | -10/Subcaves | Found Prototype Processor 3454 | -10/Subcaves | Disturbed a concealed Subdweller 3492 | -10/Subcaves | Lost 3 parts (1u2w) 3514 | -10/Subcaves | Discovered new exit (range 15) 3808 | -10/Subcaves | Shifting Twisted Machinery released Riot Gun 3812 | -10/Subcaves | Shifting Twisted Machinery released Sub. Optics 4026 | -10/Subcaves | Discovered new exit (range 7) 4031 | -10/Subcaves | Shifting Twisted Machinery released Multitool 4084 | -10/Subcaves | Shifting Twisted Machinery released Sub. Machine Gun 4372 | -10/Subcaves | Learned Materials emergency access door positions 4418 | -10/Subcaves | Build established: Scavenger-Mutant 4426 | -10/Subcaves | Visited 4L-MR0's lab 4433 | -10/Subcaves | Identified Rainbow Chip 4560 | -10/Subcaves | Entered Recycling 5046 | -9/Recycling | Build established: Commander-Mutant 5523 | -9/Recycling | Discovered new exit (range 16) 5598 | -9/Recycling | Learned Materials stockpile data 5688 | -9/Recycling | Learned 2 Storage zone layouts 5718 | -9/Recycling | Learned Storage emergency access door positions 5745 | -9/Recycling | Learned Storage trap positions 5746 | -9/Recycling | Learned Storage trap positions 5757 | -9/Recycling | Learned location of 2 exits from Materials 5778 | -9/Recycling | Learned location of Storage (-9) 5807 | -9/Recycling | Learned Materials emergency access door positions 6173 | -9/Recycling | Scanned before Scraplab entrance 6206 | -9/Recycling | Entered Scraplab 6225 | -9/Recycling | Discovered new exit (range 3) 6253 | -9/Recycling | Entered Scraptown 6253 | -9/Scraptown | Accompanied by 7 allies 6584 | -9/Scraptown | Visited Shadow of the Wyrm 6692 | -9/Scraptown | Visited Assassins FH 6721 | -9/Scraptown | Visited Fellowship of the Rings 6781 | -9/Scraptown | Visited Awakened 6860 | -9/Scraptown | Heard Great Nut preacher, LISTEN AND RECITE! 6980 | -9/Scraptown | Discovered new exit (range 11) 7666 | -9/Scraptown | Visited UFD Registry 7666 | -9/Scraptown | Registered with UFD as "Laserspreader" 7700 | -9/Scraptown | Visited Science Testing Area 7721 | -9/Scraptown | Visited Cave Peace 7899 | -9/Scraptown | Visited Abandonware Association 7925 | -9/Scraptown | Learned abandonware demo "MELTYB.EXE" 7985 | -9/Scraptown | Visited Junk Repository 8065 | -9/Scraptown | Visited Junk Repository 8154 | -9/Scraptown | Visited Cartography Club 8202 | -9/Scraptown | Visited Analyses Database 8252 | -9/Scraptown | Visited Research Penetration Think Tank 8310 | -9/Scraptown | Received an X-ray algorithm 8322 | -9/Scraptown | Visited Derelict Rescue Squad 8342 | -9/Scraptown | Found DRS Beacon 8386 | -9/Scraptown | Visited LU-1G1's Boring Crew 8424 | -9/Scraptown | Visited Scrapoid Pod Storage 8535 | -9/Scraptown | Visited Junk Cannon Lab 9117 | -9/Scraptown | Met Optimus 9117 | -9/Scraptown | Accepted into 0bPrime 9232 | -9/Scraptown | Discovered new exit (range 3) 9240 | -9/Scraptown | Entered Factory 9240 | -6/Factory | Accompanied by 7 allies 9240 | -6/Factory | Evolved 8 slots: Power x1, Propulsion x2, Utility x4, Weapon x1 9262 | -6/Factory | Loaded intel: 8 recycling unit locations 9324 | -6/Factory | Garrison activated, responded to threat 9349 | -6/Factory | Lost 7 allies 9370 | -6/Factory | Lost 3 parts (1n1u1w) 9423 | -6/Factory | Spotted B-75 Beast 9519 | -6/Factory | Attached Rainbow Chip, gained temporary slots: Power, Propulsion, Utility, Weapon 9539 | -6/Factory | Lost 13 parts (2p5n4u2w) 9589 | -6/Factory | Core integrity fell below 50% 9734 | -6/Factory | Build established: Mutant 9789 | -6/Factory | Scrapoid reinforcements arrived 9790 | -6/Factory | Attached CPS modules to 06F01-D. 9793 | -6/Factory | Attached CPS modules to 06F03-D. 9802 | -6/Factory | Found Scrap Suit 9834 | -6/Factory | Found Scrap Suit 9952 | -6/Factory | Learned location of Protoforge (-2) 10103 | -6/Factory | Found Scrap Suit 10124 | -6/Factory | Build established: Scavenger-Scrapper 10389 | -6/Factory | Discovered new exit (range 10) 10540 | -6/Factory | Discovered new exit (range 14) 10554 | -6/Factory | Identified exit to Factory 10610 | -6/Factory | Core integrity fell below 20% 10640 | -6/Factory | Search patrols dispatched 10766 | -6/Factory | Identified exit to Lower Caves 10990 | -6/Factory | First assault squad dispatched 11090 | -6/Factory | Destroyed 7 combat bots 11172 | -6/Factory | Repaired Med. Reactive Plating 11298 | -6/Factory | Central database locked down 11330 | -6/Factory | Entered another Factory area 11330 | -5/Factory | Evolved 2 slots: Utility x2 11653 | -5/Factory | Identified exit to Upper Caves 11653 | -5/Factory | Identified exit to Extension 11910 | -5/Factory | Discovered new exit (range 16) 12028 | -5/Factory | Spotted B-75 Beast 12114 | -5/Factory | Discovered new exit (range 8) 12185 | -5/Factory | Destroyed B-75 Beast 12261 | -5/Factory | System corruption reached 10% 12319 | -5/Factory | Lost 5 parts (3u2w) 12699 | -5/Factory | Loaded intel: 8 recycling unit locations 12911 | -5/Factory | Build established: Tank 13400 | -5/Factory | Lost 4 parts (2p2u) 13430 | -5/Factory | First assault squad dispatched 13669 | -5/Factory | Found Prototype Launcher 13724 | -5/Factory | Build established: Scavenger-Tank 13944 | -5/Factory | Sucked down chute 13944 | -5/Factory | Entered Waste 13945 | -5/Waste | Met a frightened Derelict 13956 | -5/Waste | Spotted C-40 Crusher 13980 | -5/Waste | Destroyed C-40 Crusher 13982 | -5/Waste | Spotted C-40 Crusher 14012 | -5/Waste | Destroyed C-40 Crusher 14053 | -5/Waste | Spotted C-40 Crusher 14078 | -5/Waste | Spotted C-40 Crusher 14079 | -5/Waste | Crushed by Compactor (0 parts destroyed, 1 dropped) 14107 | -5/Waste | Crushed by Compactor (1 part destroyed, 2 dropped) 14110 | -5/Waste | Crushed by Compactor (0 parts destroyed, 1 dropped) 14112 | -5/Waste | Crushed by Compactor (1 part destroyed) 14113 | -5/Waste | Crushed by Compactor (1 part destroyed) 14144 | -5/Waste | Lost 4 parts (1p1u2w) 14187 | -5/Waste | Spotted C-40 Crusher 14228 | -5/Waste | Spotted C-40 Crusher 14231 | -5/Waste | Warlord forces began an assault 14239 | -5/Waste | Allies destroyed C-40 Crusher 14251 | -5/Waste | Destroyed C-40 Crusher 14260 | -5/Waste | Allies destroyed C-40 Crusher 14265 | -5/Waste | Allies destroyed C-40 Crusher 14295 | -5/Waste | Lost 7 allies 14611 | -5/Waste | Discovered new exit (range 15) 14696 | -5/Waste | Entered Factory 14696 | -5/Factory | Accompanied by 8 allies 14704 | -5/Factory | Identified Mni. Smartbomb Launcher 14857 | -5/Factory | Discovered exit to Upper Caves (range 15) 14916 | -5/Factory | Garrison activated, responded to threat 15400 | -5/Factory | Discovered exit to Extension (range 15) 15425 | -5/Factory | Entered Extension 15425 | -5/Extension | Accompanied by 2 allies 15596 | -5/Extension | Core integrity fell below 50% 15620 | -5/Extension | Build established: Tank 15926 | -5/Extension | Build established: Scavenger-Tank 16061 | -5/Extension | Rescued a captive Derelict 16150 | -5/Extension | Rescued a captive Derelict 16151 | -5/Extension | Rescued a captive Derelict 16490 | -5/Extension | Build established: Commander-Tank 16622 | -5/Extension | Spotted B-75 Beast 16625 | -5/Extension | First assault squad dispatched 16634 | -5/Extension | Allies destroyed B-75 Beast 16647 | -5/Extension | Spotted B-75 Beast 16660 | -5/Extension | Allies destroyed B-75 Beast 16758 | -5/Extension | Rescued a captive Derelict 16765 | -5/Extension | Lost 3 allies 16886 | -5/Extension | Rescued A7 17052 | -5/Extension | Rescued a captive Derelict 17078 | -5/Extension | Discovered new exit (range 10) 17083 | -5/Extension | Discovered new exit (range 6) 17166 | -5/Extension | Entered Cetus 17166 | -5/Cetus | Accompanied by 16 allies (A7) 17171 | -5/Cetus | Acquired a Cetus Manufacturing Module code from A7 17183 | -5/Cetus | Spotted Cetus Guard 17183 | -5/Cetus | Spotted Cetus Guard 17183 | -5/Cetus | Destroyed Cetus Guard 17186 | -5/Cetus | Spotted Cetus Guard 17193 | -5/Cetus | Allies destroyed Cetus Guard 17194 | -5/Cetus | Spotted Cetus Guard 17203 | -5/Cetus | Destroyed Cetus Guard 17205 | -5/Cetus | Destroyed Cetus Guard 17228 | -5/Cetus | Lost 4 allies 17363 | -5/Cetus | Started Cetus Manufacturing Module 17387 | -5/Cetus | Discovered new exit (range 16) 17388 | -5/Cetus | Manufactured an Enhanced Grunt 17413 | -5/Cetus | Manufactured an Enhanced Grunt 17438 | -5/Cetus | Manufactured an Enhanced Grunt 17463 | -5/Cetus | Manufactured an Enhanced Grunt 17488 | -5/Cetus | Manufactured an Enhanced Grunt 17569 | -5/Cetus | Spotted Cetus Guard 17570 | -5/Cetus | Spotted Cetus Guard 17570 | -5/Cetus | Destroyed Cetus Guard 17573 | -5/Cetus | Spotted Cetus Guard 17580 | -5/Cetus | Spotted Cetus Guard 17580 | -5/Cetus | Allies destroyed Cetus Guard 17582 | -5/Cetus | Allies destroyed Cetus Guard 17587 | -5/Cetus | Allies destroyed Cetus Guard 17595 | -5/Cetus | Discovered new exit (range 15) 17603 | -5/Cetus | Met Revision 17 17687 | -5/Cetus | Lost 3 allies 17769 | -5/Cetus | Murdered A7 17774 | -5/Cetus | Extracted ID and sensor layout for unrecognized location from A7's data core 17780 | -5/Cetus | Found Prototype Protection 17780 | -5/Cetus | Identified Med. Regenerative Plating 17916 | -5/Cetus | Security sweep announced 17927 | -5/Cetus | Entered Archives 17927 | -5/Archives | Accompanied by 12 allies 18134 | -5/Archives | Build established: Scavenger-Gunner 18150 | -5/Archives | Discovered new exit (range 15) 18230 | -5/Archives | Discovered new exit (range 16) 18309 | -5/Archives | Discovered new exit (range 15) 18693 | -5/Archives | Entered Hub_04(d) 18693 | -5/Hub_04(d) | Accompanied by 10 allies 18854 | -5/Hub_04(d) | Lost 4 allies 19213 | -5/Hub_04(d) | Discovered new exit (range 9) 19248 | -5/Hub_04(d) | Spotted B-75 Beast 19252 | -5/Hub_04(d) | Destroyed B-75 Beast 19465 | -5/Hub_04(d) | Identified exit to Factory 19955 | -5/Hub_04(d) | Network Hub disabled 19964 | -5/Hub_04(d) | Spotted Lightning 20000 | -5/Hub_04(d) | Spotted Lightning 20002 | -5/Hub_04(d) | Spotted Lightning 20003 | -5/Hub_04(d) | Destroyed Lightning 20028 | -5/Hub_04(d) | Destroyed Lightning 20044 | -5/Hub_04(d) | Found Prototype Device 20044 | -5/Hub_04(d) | Identified Exp. Phase Shifter 20048 | -5/Hub_04(d) | Found Prototype Device 20048 | -5/Hub_04(d) | Identified Exp. EM Shield 20079 | -5/Hub_04(d) | Destroyed Lightning 20088 | -5/Hub_04(d) | Found Prototype Processor 20088 | -5/Hub_04(d) | Identified Exp. Targeting Computer 20146 | -5/Hub_04(d) | Found Prototype Energy Cannon 20279 | -5/Hub_04(d) | Spotted Lightning 20284 | -5/Hub_04(d) | Spotted Lightning 20285 | -5/Hub_04(d) | Spotted Lightning 20287 | -5/Hub_04(d) | Entered Factory 20287 | -4/Factory | Evolved 2 slots: Power x1, Utility x1 20321 | -4/Factory | Discovered new exit (range 16) 20420 | -4/Factory | Loaded intel: 8 recycling unit locations 20595 | -4/Factory | Build established: Scavenger-Tank 20728 | -4/Factory | Identified exit to Upper Caves 20752 | -4/Factory | Identified EMDS 21317 | -4/Factory | Crushed by falling debris 21360 | -4/Factory | Spotted B-86 Titan 21734 | -4/Factory | Sucked down chute 21734 | -4/Factory | Entered Waste 21734 | -4/Waste | The area was eerily silent 22705 | -4/Waste | Discovered new exit (range 12) 22792 | -4/Waste | Entered Factory 23187 | -4/Factory | Discovered new exit (range 14) 23268 | -4/Factory | Loaded intel: 8 recycling unit locations 23734 | -4/Factory | Fabricated M-13 Machinist (x1) 24042 | -4/Factory | First assault squad dispatched 24100 | -4/Factory | Discovered exit to Upper Caves (range 3) 24405 | -4/Factory | Discovered new exit (range 20) 24504 | -4/Factory | System corruption reached 10% 24635 | -4/Factory | Lost 3 parts (1p2u) 24738 | -4/Factory | Repaired Centrium Heavy Treads 24740 | -4/Factory | Watched by a mysterious "MATRIX" hacker. 24794 | -4/Factory | Repaired Centrium Heavy Treads 24990 | -4/Factory | Lost 5 parts (1u4w) 24993 | -4/Factory | Destroyed 9 combat bots 25061 | -4/Factory | Lost 6 parts (3p1n2w) 25119 | -4/Factory | Entered Armory 25120 | -4/Armory | Met VL-GR5, who suggested a friendly competition 25288 | -4/Armory | Build established: Hacker-Tank 25338 | -4/Armory | Destroyed 7 combat bots 25359 | -4/Armory | Fabricated M-13 Machinist (x1) 25369 | -4/Armory | First assault squad dispatched 25379 | -4/Armory | Core integrity fell below 50% 25565 | -4/Armory | Lost 11 parts (3p1n2u5w) 25596 | -4/Armory | Core integrity fell below 20% 25603 | -4/Armory | System corruption reached 30% 25603 | -4/Armory | Released all parts (2) 25619 | -4/Armory | Destroyed by S-27 Virus with Autogun Last Messages --------------- 25598_ The unstable cave ceiling collapses. 25598_ Exp. Heat Sink destroyed. 25599_ The unstable cave ceiling collapses. 25599_ Destroyed Adv. Heat Sink. 25599_ G-73 Enforcer destroyed. 25599_ Adv. System Shield destroyed. 25600_ System corrupted: Adv. Cryofiber Web fused. 25602_ The unstable cave ceiling collapses. 25602_ Coil Gun destroyed. 25602_ Core Analyzer destroyed. 25602_ Adv. Hacking Suite destroyed. 25602_ System corrupted by crushing effect (+4). 25602_ System corrupted by crushing effect (+2). 25602_ System corrupted by crushing effect (+3). 25603_ The unstable cave ceiling collapses. 25603_ Lrn. Missile Launcher+ destroyed. 25603_ Released Hcp. Storage Unit. 25603_ Released Adv. Cryofiber Web. 25619_ ALERT: Unidentified disturbance in Zone 8L, assault force dispatched. Map ----- +----------------------------------------------------+ | | | | | ??????????????????????????????????????? | | ??????????????????????????????????????? | | ??????????????????????????????????????? | | ??????????????????????????????????????? | | ??????????????????????????????????????? | | ??????????????????????????????????????? | | ??????????????????????????????????????? | | ??????????????????????????????????????? | | ??????????????????????????????????????? | | ??????????????????????????????????????? | | ??????????????????????????????????????? | | ??????????????????????????????????????? | | ???????????????#####################??? | | ???????????? #??? | | ???????????? #??? | | ???????????????+######### ###########? | | ???????????????? #???# #? # | | ???????????????? #???# #? # | | ????????????????? #???# # ?? | | ?????????????" ??" #???# # """"??? | | ?????????????" ?" #???# + """"??? | | ??????????# " " #???# # """"??? | | ??????????# ##### # """"??? | | ??????????# + @ #? ?? | | ??????????############### #? """" ?? | | ????????????????????????# #?? """" ?? | | ????????????????????????# #?? """???? | | ????????????????????????# #??? """???? | | ????????????????????????# #??? ???? | | ????????????????????????# #???? ???? | | ????????????????????????# #???? ???? | | ????????????????????????# #?????##???? | | ??????????????########### #??????????? | | ??????????????+ != #??????????? | | ??????????????# [ = #??????????? | | ??????????????# #######[ #??????????? | | ??????????????#?????????# ########???? | | ????????????????????????# # #???? | | ????????????????????????# # !!#???? | | ????????????????????????# # !!#???? | | ????????????????????????# + #???? | | ???????????????????##?###* # #???? | | ????????????? ?????# ## #=[# #???? | | ?????? ###### ## !=########???? | | ???????????""" " %[! [!= #???????? | | ???????????""" #^^=%# ## ## #???????? | | ???????????????#^ *# #???????? | | ???????????????# " "" #???????? | +----------------------------------------------------+ Best States ------------- Heat Dissipation 100 Energy Generation 65 Energy Capacity 1030 Matter Stores 300 Matter Capacity 300 Sight Range 16 Robot Scan Range 16 Terrain Scan Range 24 Terrain Scan Density 10 Jamming Range 14 Base Temperature (-) 200 Armor Coverage 900 Resistance: KI 30 Resistance: TH 25 Resistance: EM 75 Core Shielding 20 Weapon Cycling 25 Evasion (%) 50 Targeting Accuracy 12 Core Analysis 6 Recoil Reduction 6 Salvage Targeting 4 Offensive Hacking 26 Defensive Hacking 14 Authchip Count 1 Item Schematics ----------------- Hrd. Heavy Armor Plating | -9/Recycling | Hacked CPS Tube | -5/Factory | Scanalyzed Robot Schematics ------------------ M-13 Machinist | -9/Recycling | Hacked Fabricated ------------ M-13 Machinist | x1 | -4/Factory M-13 Machinist | x1 | -4/Armory Repaired ---------- Lgt. Armor Plating | 52% | -10/Materials Med. Reactive Plating | 51% | -6/Factory Centrium Heavy Treads | 4% | -4/Factory Centrium Heavy Treads | 27% | -4/Factory Studied --------- Arm. Huge Wheel | -6/Factory | Hacked Adv. Plasma Cannon | -5/Factory | Hacked Lrn. Missile Launcher | -5/Factory | Hacked Wheel | -4/Factory | Hacked Railgun | -4/Factory | Hacked Antimatter Reactor | -4/Factory | Hacked Alien Tech Used ----------------- None Achievements -------------- None Challenges ------------ None Game ------ Seed VariableMinesnifferHumpback Manual? 0 Play Time 02:50:53 Cumulative 853.1 hours Start 2026.04.14 @ 18:32:07 End 2026.04.15 @ 15:54:17 Sessions 11 Manual Loads 0 Difficulty Rogue Special Mode None Game No. 425 Rogue 425 Adventurer 0 Explorer 0 Win Type - Total 73 Types 47/5/7/4/1/1/3/3/1/1 Lore% 93 Gallery% 83 Achievement% 73 Wizard Run 0 Options --------- Layout 0 ASCII 0 Keyboard 1 Movement Numpad Keybinds 0 Fullscreen 2 Font 18/SmallcapsGlow Map View 76x50 Zoom Use 0% Tactical HUD 1 Map Filters NONE Filters NONE Steam 1 RUN: 6199cd52-16d4-4cc4-a6ad-cc99c0570f39